Workbook

Sheet PFP
A1: PROPOSTA FINANCEIRA DO PROJETO | J1: CODIGO:
J2: PFP
A3: NOME DA CONSULTORA:
A5: PROJETO: | F5: CONTRATANTE: | J5: BASE:
A6: CONTRATAÇÃO DE EMPRESA ESPECIALIZADA PARA A COMPLEMENTAÇÃO DOS ESTUDOS PRELIMINARES E CONSOLIDAÇÃO DO PROJETO RODOVIÁRIO DO RAMAL DO MANGA NO ESTADO AMAPÁ. | F6: CODEVASF (11ª/SR - AP) | J6: SICRO/AP-OUT/2022; TABELA CONSULTIVA DNIT-OUT/2022
A7: Base | B7: Cod2 | C7: Cod3 | D7: Categoria / Insumo | E7: Uni | F7: Qde | G7: CUD | H7: PU | I7: FatorK | J7: CT | K7: PT
A8: SICRO | B8: MO3 | C8: P0 | D8: Engenheiro coordenador (P8061) | E8: mês | F8: ='CRO1_Ins-Pro'!D5 -> 1.4 | G8: 0 | H8: =ROUND(I8*G8,2) -> 0 | I8: =PFP2.3_FatorKc!E36 -> 1.3374 | J8: =ROUND(F8*G8,2) -> 0 | K8: =ROUND(F8*H8,2) -> 0
A9: SICRO | B9: MO1 | C9: P2 | D9: Engenheiro pleno (P8066) | E9: mês | F9: ='CRO1_Ins-Pro'!D6 -> 5.5 | G9: 0 | H9: 0 | I9: =PFP2.1_FatorKa!$E$36 -> 2.4583 | J9: 0 | K9: 0
A10: SICRO | B10: MO1 | C10: P3 | D10: Engenheiro júnior (P8065) | E10: mês | F10: ='CRO1_Ins-Pro'!D7 -> 5 | G10: 0 | H10: 0 | I10: =PFP2.1_FatorKa!$E$36 -> 2.4583 | J10: 0 | K10: 0
A11: SICRO | B11: MO1 | C11: T1 | D11: Técnico de projetos/obra (P8147) | E11: mês | F11: ='CRO1_Ins-Pro'!D8 -> 5 | G11: 0 | H11: 0 | I11: =PFP2.1_FatorKa!$E$36 -> 2.4583 | J11: 0 | K11: 0
A12: SICRO | B12: MO1 | C12: D | D12: Desenhista (P9848) | E12: mês | F12: ='CRO1_Ins-Pro'!D9 -> 3.75 | G12: 0 | H12: 0 | I12: =PFP2.1_FatorKa!$E$36 -> 2.4583 | J12: 0 | K12: 0
A13: CODE | B13: SU | C13: TOP | D13: Serviços Cartográficos | E13: un | F13: 1 | G13: - | H13: =PFP1.1_Topo!G21 -> 0 | I13: - | J13: - | K13: =ROUND(F13*H13,2) -> 0
A14: CODE | B14: SU | C14: GEO | D14: Serviços Geotécnicos | E14: un | F14: 1 | G14: - | H14: =PFP1.2_Geo!G34 -> 0 | I14: - | J14: - | K14: =ROUND(F14*H14,2) -> 0
A15: TOTAL DOS CUSTOS DIRETOS | H15: =SUM(J8:J14) -> 0
A16: TOTAL DOS ENCARGOS E DISPESAS DIVERSAS | H16: =H17-H15 -> 0
A17: TOTAL DA PROPOSTA A PREÇO GLOBAL | H17: =SUM(K8:K12) -> 0
A18: TOTAL DA PROPOSTA A PREÇO UNITÁRIO | H18: =K13+K14 -> 0
A19: TOTAL DA PROPOSTA | H19: =H18+H17 -> 0
A20: OBSERVAÇÃO:
A21: Alocar os Insumos MO, com respectivo FatorK, dentro da categoria de vínculo contratual (celetista, autonomo, societario)
A22: Uni - unidade de medição do insumo;
A23: Qde - Quantidade do Insumo (não pode ocorrer alteração pela Licitante)
A24: CUD - Custo Unitário Direto do Insumo (sem encargos, taxas e impostos, valor não pode ser maior que o Orçado pela Codevasf)
A25: CT - Custo Total (sem encargos, taxas e impostos) - CT = Qde x CUD
A26: FatorK - Taxa de Ressarcimento de Despesas e Encargos (detalhar composição nas Planilhas "PFP2.1", "PFP2.2", "PFP3")
A27: PU - Preço Unitário do Insumo (incluído encargos, taxas e impostos) - PU = CUD x FatorK
A28: PT - Preço Total do Insumo (incluído encargos, taxas e impostos) - PT = Qde x PU
A29: P - Profissionais nível superior nas áreas de Engenharia, Química, Arquitetura, Agronomia e Veterinária, conforme disposições da Lei 4.950-A/66
A30: T - Profissionais de nível médio técnico nas diversas áreas de atuação
A31: D - Profissionais de nível médio de apoio técnico

Sheet PFP1.1_Topo
A1: SERVIÇOS TOPOGRÁFICOS/CARTOGRÁFICOS | G1: CODIGO:
G2: PFP-1.1
A3: NOME DA EMPRESA:
A5: PROJETO: | E5: CONTRATANTE: | G5: =PFP!J5 -> BASE:
A6: =PFP!A6 -> CONTRATAÇÃO DE EMPRESA ESPECIALIZADA PARA A COMPLEMENTAÇÃO DOS ESTUDOS PRELIMINARES E CONSOLIDAÇÃO DO PROJETO RODOVIÁRIO DO RAMAL DO MANGA NO ESTADO AMAPÁ. | E6: CODEVASF (XXXX) | G6: =PFP!J6 -> SICRO/AP-OUT/2022; TABELA CONSULTIVA DNIT-OUT/2022
A7: Cod. | B7: Base | C7: Insumos | D7: Uni | E7: Qde | F7: Preço Unitário (PU) | G7: Preço Total (PT) | I7: Valor (R$) | J7: Código | K7: Referência | L7: Objeto | M7: Data
A8: TP01 | B8: CODE | C8: Nivelamento Geométrico dos Eixos classe IIN | D8: km | E8: 7 | F8: 0 | G8: =ROUND(F8*E8,2) -> 0 | K8: Tabela de Engenharia Consultiva da Codevasf
A9: TP02 | B9: CODE | C9: Seções Tranversais | D9: km | E9: 7 | F9: 0 | G9: =ROUND(F9*E9,2) -> 0 | I9: =4.66*1000 -> 4660 | J9: 9164 | K9: ORSE | L9: Locação topográfica com nivelamento de seções transversais de serviços de terraplenagem, inclusive conferências | M9: 2022-11-01
A10: TP03 | B10: CODE | C10: Poligonal Classe IIP | D10: km | E10: 7 | F10: 0 | G10: =ROUND(F10*E10,2) -> 0 | I10: 1215.57 | J10: 01.016.0035-0 | K10: EMOP | L10: LANCAMENTO DE LINHA POLIGONAL,COM PRECISAO DE FECHAMENTO REL ATIVO A 3ª ORDEM,EM TERRENO DE OROGRAFIA ACIDENTADA E VEGETA CAO RALA | M10: 2022-12-01
A11: TP04 | B11: CODE | C11: Pontos GPS de dupla frequencia (L1/L2) | D11: un | E11: 6 | F11: 0 | G11: =ROUND(F11*E11,2) -> 0 | I11: 1153.13 | J11: 01.20.921 | K11: CPOS | L11: Implantação de marcos através de levantamento com GPS (mínimo de 3 marcos) | M11: 2022-11-01
A12: TP05 | B12: CODE | C12: Cadastro Físico | D12: ha | E12: 14 | F12: 0 | G12: =ROUND(F12*E12,2) -> 0 | K12: Tabela de Engenharia Consultiva da Codevasf
A13: TP06 | B13: CODE | C13: Cadastro Agrícola | D13: ha | E13: 14 | F13: 0 | G13: =ROUND(F13*E13,2) -> 0 | K13: Tabela de Engenharia Consultiva da Codevasf
A14: TP07 | B14: CODE | C14: Cadastro Jurídico | D14: ha | E14: 14 | F14: 0 | G14: 0 | K14: Tabela de Engenharia Consultiva da Codevasf
A15: TP08 | B15: CODE | C15: Cadastro Socioeconomico | D15: ha | E15: 14 | F15: 0 | G15: 0 | K15: Tabela de Engenharia Consultiva da Codevasf
A16: TP09 | B16: CODE | C16: Levantamento Planialtimetrico com RPA (VANT) | D16: un | E16: 1 | F16: 0 | G16: 0
A17: TP10 | B17: CODE | C17: Marco de Concreto (12x18x60cm) | D17: un | E17: 6 | F17: 0 | G17: =ROUND(F17*E17,2) -> 0 | I17: 58 | J17: 4707 | K17: ORSE | L17: Implantação de marco de concreto
A18: TP11 | B18: CODE | C18: Barrote de Madeira (10x10x50cm) | D18: un | E18: 80 | F18: 0 | G18: =ROUND(F18*E18,2) -> 0 | I18: 50.93 | J18: 7587 | K18: ORSE | L18: Cimbramento de madeira com barrotes seção 6x6cm, para estruturas altas ou Reservatórios, sem rampa | M18: 2022-11-01
A19: TP12 | B19: CODE | C19: Piquetes de Madeira (2x2x20cm) | D19: un | E19: 700 | F19: 0 | G19: =ROUND(F19*E19,2) -> 0 | I19: 2.157142857 | J19: 924 | K19: ORSE | L19: Estacas de madeira para demarcação, seção 5x5cm, altura 50 cm | M19: 2022-11-01
A20: TP13 | B20: CODE | C20: Picada Manual p/ levantamento TP | D20: km | E20: 5 | F20: 0 | G20: =ROUND(F20*E20,2) -> 0 | I20: 2043.26 | J20: 01.005.0014-A | K20: EMOP | L20: ABERTURA DE PICADAS EM TERRENO QUE EXIJA ALEM DO USO DE FACAO E FOICE,TAMBEM MACHADO E MOTOSSERRA | M20: 2022-12-01
A21: TOTAL SERVIÇOS TOPOGRÁFICOS | G21: =SUM(G8:G20) -> 0
A22: OBSERVAÇÃO:
A23: Uni - unidade de medição do insumo;
A24: Qde - Quantidade do Insumo (não pode ocorrer alteração pela Licitante)
A25: PU - Preço Unitário (composições padrão da Codevasf, já incluso o FatorK)
A26: PT - Preço Total (incluído encargos, taxas e impostos) - PT = Qde x PU

Sheet PFP1.2_Geo
A1: SERVIÇOS GEOLÓGICOS/GEOTÉCNICOS | G1: CODIGO:
G2: PFP-1.2
A3: NOME DA EMPRESA:
A5: PROJETO: | E5: CONTRATANTE: | G5: =PFP!J5 -> BASE:
A6: =PFP!A6 -> CONTRATAÇÃO DE EMPRESA ESPECIALIZADA PARA A COMPLEMENTAÇÃO DOS ESTUDOS PRELIMINARES E CONSOLIDAÇÃO DO PROJETO RODOVIÁRIO DO RAMAL DO MANGA NO ESTADO AMAPÁ. | E6: CODEVASF (XXXXXX) | G6: =PFP1.1_Topo!G6 -> SICRO/AP-OUT/2022; TABELA CONSULTIVA DNIT-OUT/2022
A7: Cod. | B7: Base | C7: Insumos | D7: Uni | E7: Qde | F7: Preço Unitário (PU) | G7: Preço Total (PT)
A8: GT 1 | B8: CODE | C8: Sondagem a Percussão SPT
A9: GT1.1 | B9: CODE | C9: Sondagem Percussão: (Des)Mobilização | D9: un | E9: 1 | F9: 0 | G9: =E9*F9 -> 0 | J9: 999.49 | K9: 95.01.01 | L9: SUDECAP/INSUMO | M9: MOBILIZAÇÃO, INSTALAÇÃO E DESMOBILIZAÇÃO, PARA EXECUÇÃO DE SONDAGEM À PERCUSSÃO (NBR 6484:2020) | N9: 2022-12-01
A10: GT1.2 | B10: CODE | C10: Sondagem Percursão: com SPT - Terrestre | D10: m | E10: 105 | F10: 0 | G10: =E10*F10 -> 0 | J10: 94.06 | K10: A.07.000.020483 | L10: CPOS/INSUMO | M10: Sondagem a percussão, inclusive as peças gráficas e relatórios pertinentes mínimo de 30m | N10: 2022-11-01
A11: GT3 | B11: CODE | C11: Sondagem a Trado manual | D11: m | E11: 80 | F11: 0 | G11: =F11*E11 -> 0 | J11: 63,50 | K11: E200320101 | L11: EMBASA/INSUMO | M11: SONDAGEM A TRADO MANUAL | N11: 2023-01-01
A12: GT4 | B12: CODE | C12: Ensaios:
A13: GT4.1 | B13: CODE | C13: Ensaios de solo
A14: GT4.2.1 | B14: CODE | C14: Ensaio: Umidade Natural | D14: un | E14: 40 | F14: 0 | G14: =E14*F14 -> 0 | J14: 68.87 | K14: E200340122 | L14: EMBASA/INSUMO | M14: ENSAIO DE UMIDADE NATURAL (ESTUFA) | N14: 2023-01-01
A15: GT4.2.2 | B15: CODE | C15: Ensaio: Densidade Natural | D15: un | E15: 40 | F15: 0 | G15: 0 | J15: 49.02 | K15: 01.001.0091-A | L15: EMOP/COMPOSIÇÃO | M15: DENSIDADE APARENTE(AGREGADO MIUDO) | N15: 2022-12-01
A16: GT4.2.3 | B16: CODE | C16: Ensaio: Limite de Liquidez | D16: un | E16: 40 | F16: 0 | G16: 0 | J16: 140 | K16: 4683 | L16: ORSE/COMPOSIÇÃO | M16: Ensaio - Limite de liquidez | N16: 2022-11-01
A17: GT4.2.4 | B17: CODE | C17: Ensaio: Limite de Plasticidade | D17: un | E17: 40 | F17: 0 | G17: 0 | J17: 140 | K17: 4684 | L17: ORSE/COMPOSIÇÃO | M17: Ensaio - Limite de plasticidade | N17: 2022-11-01
A18: GT4.2.5 | B18: CODE | C18: Ensaio: Granulometria por Peneiramento | D18: un | E18: 48 | F18: 0 | G18: 0 | J18: 140 | K18: 4682 | L18: ORSE/COMPOSIÇÃO | M18: Ensaio - Granulometria por peneiramento | N18: 2022-11-01
A19: GT4.2.6 | B19: CODE | C19: Ensaio: Granulometria por Sedimentação | D19: un | E19: 48 | F19: 0 | G19: 0 | J19: 121.44 | K19: 01.07.07U | L19: COMPESA/COMPOSIÇÃO | M19: ENSAIO DE GRANULOMETRIA POR PENEIRAMENTO E SEDIMENTAÇÃO - SOLOS | N19: 2022-07-01
A20: GT4.2.7 | B20: CODE | C20: Ensaio: Massa Especifica Real dos Grãos | D20: un | E20: 40 | F20: 0 | G20: 0 | J20: 65.78 | K20: 34.01.16 | L20: EMBASA/COMPOSIÇÃO | M20: MASSA ESPECIFICA REAL DOS GRAOS | N20: 2023-01-01
A21: GT4.2.8 | B21: CODE | C21: Ensaio: Massa Específica Aparente "in situ" | D21: un | E21: 40 | F21: 0 | G21: 0 | J21: 150,00 | K21: 97.01.03 | L21: SUDECAP/INSUMO | M21: MASSA ESPECÍFICA, MASSA ESPECÍFICA APARENTE E ABSORÇÃO DE ÁGUA (NBR 6458:2016) | N21: 2022-12-01
A22: GT4.2.9 | B22: CODE | C22: Ensaio: Compactação Proctor Normal | D22: un | E22: 40 | F22: 0 | G22: 0 | J22: 163.57 | K22: 34.01.25 | L22: EMBASA/COMPOSIÇÃO | M22: ENSAIO DE COMPACTACAO - PROCTOR NORMAL (NBR - 07182) | N22: 2023-01-01
A23: GT4.2.10 | B23: CODE | C23: Ensaio: índice de Suporte California | D23: un | E23: 40 | F23: 0 | G23: 0 | J23: 223,84 | K23: 34.01.34 | L23: EMBASA/COMPOSIÇÃO | M23: ENSAIO DE INDICE DE SUPORTE CALIFORNIA (NBR 09895) | N23: 2023-01-01
A24: GT4.3 | B24: CODE | C24: Ensaios de Expansão
A25: GT4.3.1 | B25: CODE | C25: Ensaio: Expansão colapsividade em aneis | D25: un | E25: 16 | F25: 0 | G25: =E25*F25 -> 0 | J25: 422.08 | L25: Tabela de Engenharia Consultiva da Codevasf
A26: GT4.3.2 | B26: CODE | C26: Ensaio: Determinação da pressão de expansão | D26: un | E26: 16 | F26: 0 | G26: =F26*E26 -> 0 | J26: 318.79 | L26: Tabela de Engenharia Consultiva da Codevasf
A27: GT4.4 | B27: CODE | C27: Ensaios de Análise da Areia
A28: GT4.4.1 | B28: CODE | C28: Ensaio: Teor de Matéria Orgânica | D28: un | E28: 10 | F28: 0 | G28: =E28*F28 -> 0 | J28: 200,00 | K28: 34.05.30 | L28: EMBASA | M28: ENSAIO DE TEOR DE MATÉRIA ORGÂNICA | N28: 2023-01-01
A29: GT4.4.2 | B29: CODE | C29: Ensaio: Equivalente Areia | D29: un | E29: 10 | F29: 0 | G29: =E29*F29 -> 0 | J29: 226.93 | K29: 01.001.0009-0 | L29: EMOP | M29: EQUIVALENTE DE AREIA | N29: 2022-12-01
A30: GT4.5 | B30: CODE | C30: Ensaios de Material Pétreo
A31: GT4.5.1 | B31: CODE | C31: Ensaio: Abrasão los Angeles | D31: un | E31: 8 | F31: 0 | G31: =E31*F31 -> 0 | J31: 268.45 | K31: 01.07.13U | L31: COMPESA | M31: ENSAIO DE ABRASÃO LOS ANGELES - AGREGADOS | N31: 2022-07-01
A32: GT4.5.2 | B32: CODE | C32: Ensaio: Índice de Forma | D32: un | E32: 8 | F32: 0 | G32: =E32*F32 -> 0 | J32: 230.77 | K32: 4690 | L32: ORSE | M32: Ensaio - Índice de forma | N32: 2022-11-01
A33: GT4.5.4 | B33: CODE | C33: Ensaio: Adesividade | D33: un | E33: 8 | F33: 0 | G33: =E33*F33 -> 0 | J33: 180,00 | K33: 96.01.29 | L33: SUDECAP | M33: VERIFICAÇÃO DA ADESIVIDADE DE AGREGADO GRAUDO AO LIGANTE BETUMINOSO (NBR 12583:2017) | N33: 2022-12-01
A34: TOTAL SERVIÇOS GEOTÉCNICOS | G34: =SUM(G9:G33) -> 0
A35: LEGENDA:
A36: Uni - unidade de medição do insumo;
A37: Qde - Quantidade do Insumo (não pode ocorrer alteração pela Licitante)
A38: PU - Preço Unitário (composições padrão da Codevasf, já incluso o FatorK)
A39: PT - Preço Total (incluído encargos, taxas e impostos) - PT = Qde x PU
C45: Ensaio: Umidade Natural | E45: 68.87 | F45: E200340122 | G45: EMBASA | H45: ENSAIO DE UMIDADE NATURAL (ESTUFA) | I45: 2023-01-01
C46: Ensaio: Densidade Natural | E46: 49.02 | F46: 01.001.0091-A | G46: EMOP | H46: DENSIDADE APARENTE(AGREGADO MIUDO) | I46: 2022-10-01
C47: Ensaio: Limite de Liquidez | E47: 140 | F47: 4683 | G47: ORSE | H47: Ensaio - Limite de liquidez | I47: 2022-09-01
C48: Ensaio: Limite de Plasticidade | E48: 140 | F48: 4684 | G48: ORSE | H48: Ensaio - Limite de plasticidade | I48: 2022-11-01
C49: Ensaio: Granulometria por Peneiramento | E49: 140 | F49: 4682 | G49: ORSE | H49: Ensaio - Granulometria por peneiramento | I49: 2022-11-01

Sheet PFP2.1_FatorKa
A1: DETALHAMENTO DOS ENCARGOS SOCIAIS: Ka | F1: CODIGO:
F2: PFP-2.1
A3: NOME DA CONSULTORA:
A5: PROJETO: | C5: CONTRATANTE: | F5: =PFP!J5 -> BASE:
A6: =PFP!A6 -> CONTRATAÇÃO DE EMPRESA ESPECIALIZADA PARA A COMPLEMENTAÇÃO DOS ESTUDOS PRELIMINARES E CONSOLIDAÇÃO DO PROJETO RODOVIÁRIO DO RAMAL DO MANGA NO ESTADO AMAPÁ. | C6: CODEVASF (SEDE) | F6: SINAPI/AP: Out/2021
A7: Cod | B7: DESCRIÇÃO | E7: % | F7: R$
A8: A | B8: ENCARGOS SOCIAIS BÁSICOS | E8: =ROUND(SUM(E9:E17),4) -> 0.368 | F8: =ROUND(E8*SUMIF(PFP!$B$8:$B$14,"MO1",PFP!$J$8:$J$14),2) -> 0
A9: A1 | B9: INSS | E9: 0.2 | F9: =ROUND(E9*SUMIF(PFP!$B$8:$B$14,"MO1",PFP!$J$8:$J$14),2) -> 0
A10: A2 | B10: SESI | E10: 0.015 | F10: =ROUND(E10*SUMIF(PFP!$B$8:$B$14,"MO1",PFP!$J$8:$J$14),2) -> 0
A11: A3 | B11: SENAI | E11: 0.01 | F11: =ROUND(E11*SUMIF(PFP!$B$8:$B$14,"MO1",PFP!$J$8:$J$14),2) -> 0
A12: A4 | B12: INCRA | E12: 0.002 | F12: =ROUND(E12*SUMIF(PFP!$B$8:$B$14,"MO1",PFP!$J$8:$J$14),2) -> 0
A13: A5 | B13: SEBRAE | E13: 0.006 | F13: =ROUND(E13*SUMIF(PFP!$B$8:$B$14,"MO1",PFP!$J$8:$J$14),2) -> 0
A14: A6 | B14: Salário Educação | E14: 0.025 | F14: =ROUND(E14*SUMIF(PFP!$B$8:$B$14,"MO1",PFP!$J$8:$J$14),2) -> 0
A15: A7 | B15: Seguro Contra Acidentes de Trabalho | E15: 0.03 | F15: =ROUND(E15*SUMIF(PFP!$B$8:$B$14,"MO1",PFP!$J$8:$J$14),2) -> 0
A16: A8 | B16: FGTS | E16: 0.08 | F16: =ROUND(E16*SUMIF(PFP!$B$8:$B$14,"MO1",PFP!$J$8:$J$14),2) -> 0
A17: A9 | B17: Seconci | E17: 0 | F17: =ROUND(E17*SUMIF(PFP!$B$8:$B$14,"MO1",PFP!$J$8:$J$14),2) -> 0
A18: B | B18: ENCARGOS SOCIAIS QUE RECEBEM INCIDÊNCIA DE "A" | E18: =ROUND(SUM(E19:E25),4) -> 0.2583 | F18: =ROUND(E18*SUMIF(PFP!$B$8:$B$14,"MO1",PFP!$J$8:$J$14),2) -> 0
A19: B3 | B19: Auxílio Enfermidade | E19: 0.0089 | F19: =ROUND(E19*SUMIF(PFP!$B$8:$B$14,"MO1",PFP!$J$8:$J$14),2) -> 0
A20: B4 | B20: 13º Salário | E20: 0.112 | F20: =ROUND(E20*SUMIF(PFP!$B$8:$B$14,"MO1",PFP!$J$8:$J$14),2) -> 0
A21: B5 | B21: Licença Paternidade | E21: 0.0007 | F21: =ROUND(E21*SUMIF(PFP!$B$8:$B$14,"MO1",PFP!$J$8:$J$14),2) -> 0
A22: B6 | B22: Faltas Justificadas | E22: 0.0075 | F22: =ROUND(E22*SUMIF(PFP!$B$8:$B$14,"MO1",PFP!$J$8:$J$14),2) -> 0
A23: B8 | B23: Auxílio Acidente de Trabalho | E23: 0.0011 | F23: =ROUND(E23*SUMIF(PFP!$B$8:$B$14,"MO1",PFP!$J$8:$J$14),2) -> 0
A24: B9 | B24: Férias Gozadas | E24: 0.1277 | F24: =ROUND(E24*SUMIF(PFP!$B$8:$B$14,"MO1",PFP!$J$8:$J$14),2) -> 0
A25: B10 | B25: Salário Maternidade | E25: 0.0004 | F25: =ROUND(E25*SUMIF(PFP!$B$8:$B$14,"MO1",PFP!$J$8:$J$14),2) -> 0
A26: C | B26: ENCARGOS SOCIAIS QUE NÃO RECEBEM INCIDÊNCIA DE "A" | E26: =ROUND(SUM(E27:E31),4) -> 0.0819 | F26: =ROUND(E26*SUMIF(PFP!$B$8:$B$14,"MO1",PFP!$J$8:$J$14),2) -> 0
A27: C1 | B27: Aviso Prévio Indenizado | E27: 0.0406 | F27: =ROUND(E27*SUMIF(PFP!$B$8:$B$14,"MO1",PFP!$J$8:$J$14),2) -> 0
A28: C2 | B28: Aviso Prévio Trabalhado | E28: 0.001 | F28: =ROUND(E28*SUMIF(PFP!$B$8:$B$14,"MO1",PFP!$J$8:$J$14),2) -> 0
A29: C3 | B29: Férias Indenizadas | E29: 0.0162 | F29: =ROUND(E29*SUMIF(PFP!$B$8:$B$14,"MO1",PFP!$J$8:$J$14),2) -> 0
A30: C4 | B30: Depósito Rescisão Sem Justa Causa | E30: 0.0207 | F30: =ROUND(E30*SUMIF(PFP!$B$8:$B$14,"MO1",PFP!$J$8:$J$14),2) -> 0
A31: C5 | B31: Indenização Adicional | E31: 0.0034 | F31: =ROUND(E31*SUMIF(PFP!$B$8:$B$14,"MO1",PFP!$J$8:$J$14),2) -> 0
A32: D | B32: REINCIDÊNCIAS | E32: =ROUND(SUM(E33:E34),4) -> 0.1906 | F32: =ROUND(E32*SUMIF(PFP!$B$8:$B$14,"MO1",PFP!$J$8:$J$14),2) -> 0
A33: D1 | B33: Reincidência de "A" sobre "B" | E33: 0.187 | F33: =ROUND(E33*SUMIF(PFP!$B$8:$B$14,"MO1",PFP!$J$8:$J$14),2) -> 0
A34: D2 | B34: Reincidência de "A" sobre Aviso Prévio Trabalhado e reincidência do FGTS sobre Aviso Prévio Indenizado | E34: =ROUND((E28*E8)+(E27*E16),4) -> 0.0036 | F34: =ROUND(E34*SUMIF(PFP!$B$8:$B$14,"MO1",PFP!$J$8:$J$14),2) -> 0
A35: K1a | B35: ENCARGOS SOCIAIS | E35: =ROUND(E8+E18+E26+E32,4) -> 0.8988 | F35: =ROUND(E35*SUMIF(PFP!$B$8:$B$14,"MO1",PFP!$J$8:$J$14),2) -> 0
A36: Ka | B36: TAXA DE RESSARCIMENTO DE DESPESAS E ENCARGOS SOBRE MO1 | E36: =ROUND((1+E35+PFP3_FatorKd!E13)*(1+PFP3_FatorKd!E12)*(1+PFP3_FatorKd!E8),4) -> 2.4583
A37: OBSERVAÇÃO: CELETISTAS E EQUIVALENTES
A38: 1 - DISCRIMINAR OS ENCARGOS SOCIAIS COM SEUS RESPECTIVOS PERCENTUAS TOTALIZANDO OS MESMOS.
A39: 2 - APLICAR O % TOTAL P/ CALCULAR OS E. SOCIAIS INCIDENTES NA MÃO-DE-OBRA CELETISTAS
A40: Ka - Taxa de Ressarcimento de Despesas e Encargos sobre a Mão de Obra CELETISTA (incide apenas no Insumo Codigo MO1)
A41: Ka = (1 + K1 + K2) x (1 + K3) x (1 + K4)

Sheet PFP2.2_FatorKb
A1: DETALHAMENTO DOS ENCARGOS SOCIAIS: Kb | F1: CODIGO:
F2: PFP-2.2
A3: NOME DA CONSULTORA:
A5: PROJETO: | C5: CONTRATANTE: | F5: =PFP2.1_FatorKa!F5 -> BASE:
A6: =PFP!A6 -> CONTRATAÇÃO DE EMPRESA ESPECIALIZADA PARA A COMPLEMENTAÇÃO DOS ESTUDOS PRELIMINARES E CONSOLIDAÇÃO DO PROJETO RODOVIÁRIO DO RAMAL DO MANGA NO ESTADO AMAPÁ. | C6: CODEVASF (SEDE)
A7: Cod | B7: DESCRIÇÃO | E7: % | F7: R$
A8: A | B8: ENCARGOS SOCIAIS BÁSICOS | E8: =ROUND(SUM(E9:E17),4) -> 0.2 | F8: =ROUND(E8*SUMIF(PFP!$B$8:$B$14,"MO2",PFP!$J$8:$J$14),2) -> 0
A9: A1 | B9: INSS | E9: 0.2 | F9: =ROUND(E9*SUMIF(PFP!$B$8:$B$14,"MO2",PFP!$J$8:$J$14),2) -> 0
A10: A2 | B10: SESI | E10: 0 | F10: =ROUND(E10*SUMIF(PFP!$B$8:$B$14,"MO2",PFP!$J$8:$J$14),2) -> 0
A11: A3 | B11: SENAI | E11: 0 | F11: =ROUND(E11*SUMIF(PFP!$B$8:$B$14,"MO2",PFP!$J$8:$J$14),2) -> 0
A12: A4 | B12: INCRA | E12: 0 | F12: =ROUND(E12*SUMIF(PFP!$B$8:$B$14,"MO2",PFP!$J$8:$J$14),2) -> 0
A13: A5 | B13: SEBRAE | E13: 0 | F13: =ROUND(E13*SUMIF(PFP!$B$8:$B$14,"MO2",PFP!$J$8:$J$14),2) -> 0
A14: A6 | B14: Salário Educação | E14: 0 | F14: =ROUND(E14*SUMIF(PFP!$B$8:$B$14,"MO2",PFP!$J$8:$J$14),2) -> 0
A15: A7 | B15: Seguro Contra Acidentes de Trabalho | E15: 0 | F15: =ROUND(E15*SUMIF(PFP!$B$8:$B$14,"MO2",PFP!$J$8:$J$14),2) -> 0
A16: A8 | B16: FGTS | E16: 0 | F16: =ROUND(E16*SUMIF(PFP!$B$8:$B$14,"MO2",PFP!$J$8:$J$14),2) -> 0
A17: A9 | B17: SECONCI | E17: 0 | F17: =ROUND(E17*SUMIF(PFP!$B$8:$B$14,"MO2",PFP!$J$8:$J$14),2) -> 0
A18: B | B18: ENCARGOS SOCIAIS QUE RECEBEM INCIDÊNCIA DE "A" | E18: =ROUND(SUM(E19:E25),4) -> 0 | F18: =ROUND(E18*SUMIF(PFP!$B$8:$B$14,"MO2",PFP!$J$8:$J$14),2) -> 0
A19: B3 | B19: Auxílio Enfermidade | E19: 0 | F19: =ROUND(E19*SUMIF(PFP!$B$8:$B$14,"MO2",PFP!$J$8:$J$14),2) -> 0
A20: B4 | B20: 13º Salário | E20: 0 | F20: =ROUND(E20*SUMIF(PFP!$B$8:$B$14,"MO2",PFP!$J$8:$J$14),2) -> 0
A21: B5 | B21: Licença Paternidade | E21: 0 | F21: =ROUND(E21*SUMIF(PFP!$B$8:$B$14,"MO2",PFP!$J$8:$J$14),2) -> 0
A22: B6 | B22: Faltas Justificadas | E22: 0 | F22: =ROUND(E22*SUMIF(PFP!$B$8:$B$14,"MO2",PFP!$J$8:$J$14),2) -> 0
A23: B8 | B23: Auxílio Acidente de Trabalho | E23: 0 | F23: =ROUND(E23*SUMIF(PFP!$B$8:$B$14,"MO2",PFP!$J$8:$J$14),2) -> 0
A24: B9 | B24: Férias Gozadas | E24: 0 | F24: =ROUND(E24*SUMIF(PFP!$B$8:$B$14,"MO2",PFP!$J$8:$J$14),2) -> 0
A25: B10 | B25: Salário Maternidade | E25: 0 | F25: =ROUND(E25*SUMIF(PFP!$B$8:$B$14,"MO2",PFP!$J$8:$J$14),2) -> 0
A26: C | B26: ENCARGOS SOCIAIS QUE NÃO RECEBEM INCIDÊNCIA DE "A" | E26: =ROUND(SUM(E27:E31),4) -> 0 | F26: =ROUND(E26*SUMIF(PFP!$B$8:$B$14,"MO2",PFP!$J$8:$J$14),2) -> 0
A27: C1 | B27: Aviso Prévio Indenizado | E27: 0 | F27: =ROUND(E27*SUMIF(PFP!$B$8:$B$14,"MO2",PFP!$J$8:$J$14),2) -> 0
A28: C2 | B28: Aviso Prévio Trabalhado | E28: 0 | F28: =ROUND(E28*SUMIF(PFP!$B$8:$B$14,"MO2",PFP!$J$8:$J$14),2) -> 0
A29: C3 | B29: Férias Indenizadas | E29: 0 | F29: =ROUND(E29*SUMIF(PFP!$B$8:$B$14,"MO2",PFP!$J$8:$J$14),2) -> 0
A30: C4 | B30: Depósito Rescisão Sem Justa Causa | E30: 0 | F30: =ROUND(E30*SUMIF(PFP!$B$8:$B$14,"MO2",PFP!$J$8:$J$14),2) -> 0
A31: C5 | B31: Indenização Adicional | E31: 0 | F31: =ROUND(E31*SUMIF(PFP!$B$8:$B$14,"MO2",PFP!$J$8:$J$14),2) -> 0
A32: D | B32: REINCIDÊNCIAS | E32: =ROUND(SUM(E33:E34),4) -> 0 | F32: =ROUND(E32*SUMIF(PFP!$B$8:$B$14,"MO2",PFP!$J$8:$J$14),2) -> 0
A33: D1 | B33: Reincidência de "A" sobre "B" | E33: =ROUND(E8*E18,4) -> 0 | F33: =ROUND(E33*SUMIF(PFP!$B$8:$B$14,"MO2",PFP!$J$8:$J$14),2) -> 0
A34: D2 | B34: Reincidência de "A" sobre Aviso Prévio Trabalhado e reincidência do FGTS sobre Aviso Prévio Indenizado | E34: =ROUND(E8*E28,4)+ROUND(E27*E11,4) -> 0 | F34: =ROUND(E34*SUMIF(PFP!$B$8:$B$14,"MO2",PFP!$J$8:$J$14),2) -> 0
A35: K1b | B35: ENCARGOS SOCIAIS | E35: =ROUND(E8+E18+E26+E32,4) -> 0.2 | F35: =ROUND(E35*SUMIF(PFP!$B$8:$B$14,"MO2",PFP!$J$8:$J$14),2) -> 0
A36: Kb | B36: TAXA DE RESSARCIMENTO DE DESPESAS E ENCARGOS SOBRE MO2 | E36: =ROUND((1+E35+PFP3_FatorKd!E13)*(1+PFP3_FatorKd!E12)*(1+PFP3_FatorKd!E8),4) -> 1.5868
A37: OBSERVAÇÃO: AUTÔNOMOS E EQUIVALENTES
A38: 1 - DISCRIMINAR OS ENCARGOS SOCIAIS COM SEUS RESPECTIVOS PERCENTUAS TOTALIZANDO OS MESMOS.
A39: 2 - APLICAR O % TOTAL P/ CALCULAR OS E. SOCIAIS INCIDENTES NA MÃO-DE-OBRA AUTONÔMOS
A40: Kb - Taxa de Ressarcimento de Despesas e Encargos sobre a Mão de Obra AUTONÔMA (incide apenas no Insumo Codigo MO2)
A41: Kb = (1 + K1 + K2) x (1 + K3) x (1 + K4)

Sheet PFP2.3_FatorKc
A1: DETALHAMENTO DOS ENCARGOS SOCIAIS: Kc | F1: CODIGO:
F2: PFP-2.3
A3: NOME DA CONSULTORA:
A5: PROJETO: | C5: CONTRATANTE: | F5: =PFP2.2_FatorKb!F5 -> BASE:
A6: =PFP!A6 -> CONTRATAÇÃO DE EMPRESA ESPECIALIZADA PARA A COMPLEMENTAÇÃO DOS ESTUDOS PRELIMINARES E CONSOLIDAÇÃO DO PROJETO RODOVIÁRIO DO RAMAL DO MANGA NO ESTADO AMAPÁ. | C6: CODEVASF (SEDE)
A7: Cod | B7: DESCRIÇÃO | E7: % | F7: R$
A8: A | B8: ENCARGOS SOCIAIS BÁSICOS | E8: =SUM(E9:E17) -> 0 | F8: =ROUND(E8*SUMIF(PFP!$B$8:$B$14,"MO3",PFP!$J$8:$J$14),2) -> 0
A9: A1 | B9: INSS | E9: 0 | F9: =ROUND(E9*SUMIF(PFP!$B$8:$B$14,"MO3",PFP!$J$8:$J$14),2) -> 0
A10: A2 | B10: SESI | E10: 0 | F10: =ROUND(E10*SUMIF(PFP!$B$8:$B$14,"MO3",PFP!$J$8:$J$14),2) -> 0
A11: A3 | B11: SENAI | E11: 0 | F11: =ROUND(E11*SUMIF(PFP!$B$8:$B$14,"MO3",PFP!$J$8:$J$14),2) -> 0
A12: A4 | B12: INCRA | E12: 0 | F12: =ROUND(E12*SUMIF(PFP!$B$8:$B$14,"MO3",PFP!$J$8:$J$14),2) -> 0
A13: A5 | B13: SEBRAE | E13: 0 | F13: =ROUND(E13*SUMIF(PFP!$B$8:$B$14,"MO3",PFP!$J$8:$J$14),2) -> 0
A14: A6 | B14: Salário Educação | E14: 0 | F14: =ROUND(E14*SUMIF(PFP!$B$8:$B$14,"MO3",PFP!$J$8:$J$14),2) -> 0
A15: A7 | B15: Seguro Contra Acidentes de Trabalho | E15: 0 | F15: =ROUND(E15*SUMIF(PFP!$B$8:$B$14,"MO3",PFP!$J$8:$J$14),2) -> 0
A16: A8 | B16: FGTS | E16: 0 | F16: =ROUND(E16*SUMIF(PFP!$B$8:$B$14,"MO3",PFP!$J$8:$J$14),2) -> 0
A17: A9 | B17: SECONCI | E17: 0 | F17: =ROUND(E17*SUMIF(PFP!$B$8:$B$14,"MO3",PFP!$J$8:$J$14),2) -> 0
A18: B | B18: ENCARGOS SOCIAIS QUE RECEBEM INCIDÊNCIA DE "A" | E18: =ROUND(SUM(E19:E25),4) -> 0 | F18: =ROUND(E18*SUMIF(PFP!$B$8:$B$14,"MO3",PFP!$J$8:$J$14),2) -> 0
A19: B3 | B19: Auxílio Enfermidade | E19: 0 | F19: =ROUND(E19*SUMIF(PFP!$B$8:$B$14,"MO3",PFP!$J$8:$J$14),2) -> 0
A20: B4 | B20: 13º Salário | E20: 0 | F20: =ROUND(E20*SUMIF(PFP!$B$8:$B$14,"MO3",PFP!$J$8:$J$14),2) -> 0
A21: B5 | B21: Licença Paternidade | E21: 0 | F21: =ROUND(E21*SUMIF(PFP!$B$8:$B$14,"MO3",PFP!$J$8:$J$14),2) -> 0
A22: B6 | B22: Faltas Justificadas | E22: 0 | F22: =ROUND(E22*SUMIF(PFP!$B$8:$B$14,"MO3",PFP!$J$8:$J$14),2) -> 0
A23: B8 | B23: Auxílio Acidente de Trabalho | E23: 0 | F23: =ROUND(E23*SUMIF(PFP!$B$8:$B$14,"MO3",PFP!$J$8:$J$14),2) -> 0
A24: B9 | B24: Férias Gozadas | E24: 0 | F24: =ROUND(E24*SUMIF(PFP!$B$8:$B$14,"MO3",PFP!$J$8:$J$14),2) -> 0
A25: B10 | B25: Salário Maternidade | E25: 0 | F25: =ROUND(E25*SUMIF(PFP!$B$8:$B$14,"MO3",PFP!$J$8:$J$14),2) -> 0
A26: C | B26: ENCARGOS SOCIAIS QUE NÃO RECEBEM INCIDÊNCIA DE "A" | E26: =ROUND(SUM(E27:E31),4) -> 0 | F26: =ROUND(E26*SUMIF(PFP!$B$8:$B$14,"MO3",PFP!$J$8:$J$14),2) -> 0
A27: C1 | B27: Aviso Prévio Indenizado | E27: 0 | F27: =ROUND(E27*SUMIF(PFP!$B$8:$B$14,"MO3",PFP!$J$8:$J$14),2) -> 0
A28: C2 | B28: Aviso Prévio Trabalhado | E28: 0 | F28: =ROUND(E28*SUMIF(PFP!$B$8:$B$14,"MO3",PFP!$J$8:$J$14),2) -> 0
A29: C3 | B29: Férias Indenizadas | E29: 0 | F29: =ROUND(E29*SUMIF(PFP!$B$8:$B$14,"MO3",PFP!$J$8:$J$14),2) -> 0
A30: C4 | B30: Depósito Rescisão Sem Justa Causa | E30: 0 | F30: =ROUND(E30*SUMIF(PFP!$B$8:$B$14,"MO3",PFP!$J$8:$J$14),2) -> 0
A31: C5 | B31: Indenização Adicional | E31: 0 | F31: =ROUND(E31*SUMIF(PFP!$B$8:$B$14,"MO3",PFP!$J$8:$J$14),2) -> 0
A32: D | B32: REINCIDÊNCIAS | E32: =ROUND(SUM(E33:E34),4) -> 0 | F32: =ROUND(E32*SUMIF(PFP!$B$8:$B$14,"MO3",PFP!$J$8:$J$14),2) -> 0
A33: D1 | B33: Reincidência de "A" sobre "B" | E33: =ROUND(E8*E18,4) -> 0 | F33: =ROUND(E33*SUMIF(PFP!$B$8:$B$14,"MO3",PFP!$J$8:$J$14),2) -> 0
A34: D2 | B34: Reincidência de "A" sobre Aviso Prévio Trabalhado e reincidência do FGTS sobre Aviso Prévio Indenizado | E34: =ROUND(E8*E28,4)+ROUND(E27*E11,4) -> 0 | F34: =ROUND(E34*SUMIF(PFP!$B$8:$B$14,"MO3",PFP!$J$8:$J$14),2) -> 0
A35: K1c | B35: ENCARGOS SOCIAIS | E35: =ROUND(E8+E18+E26+E32,4) -> 0 | F35: =ROUND(E35*SUMIF(PFP!$B$8:$B$14,"MO3",PFP!$J$8:$J$14),2) -> 0
A36: Kc | B36: TAXA DE RESSARCIMENTO DE DESPESAS E ENCARGOS SOBRE MO3 | E36: =ROUND((1+E35+PFP3_FatorKd!E13)*(1+PFP3_FatorKd!E12)*(1+PFP3_FatorKd!E8),4) -> 1.3374
A37: OBSERVAÇÃO: SOCIETÁRIOS E EQUIVALENTES
A38: 1 - DISCRIMINAR OS ENCARGOS SOCIAIS COM SEUS RESPECTIVOS PERCENTUAS TOTALIZANDO OS MESMOS.
A39: 2 - APLICAR O % TOTAL P/ CALCULAR OS E. SOCIAIS INCIDENTES NA MÃO-DE-OBRA DE SOCIETÁRIOS
A40: Kc - Taxa de Ressarcimento de Despesas e Encargos sobre a Mão de Obra SOCIETÁRIA (incide apenas no Insumo Codigo MO3)
A41: Kc = (1 + K1 + K2) x (1 + K3) x (1 + K4)

Sheet PFP3_FatorKd
A1: DESPESAS FISCAIS E CUSTOS DIVERSOS: Kd | F1: CODIGO:
F2: PFP-3
A3: NOME DA CONSULTORA:
A5: PROJETO: | C5: CONTRATANTE: | F5: =PFP2.3_FatorKc!F5 -> BASE:
A6: =PFP!A6 -> CONTRATAÇÃO DE EMPRESA ESPECIALIZADA PARA A COMPLEMENTAÇÃO DOS ESTUDOS PRELIMINARES E CONSOLIDAÇÃO DO PROJETO RODOVIÁRIO DO RAMAL DO MANGA NO ESTADO AMAPÁ. | C6: CODEVASF (SEDE)
A7: Cod | B7: DESCRIÇÃO1 | D7: % preço2 | E7: % custo4 | F7: R$
A8: K4 | B8: TRIBUTOS | D8: =ROUND(D9+D10+D11,4) -> 0.124 | E8: =ROUND(E9+E10+E11,4) -> 0.1416 | F8: =E8*SUM(SUMIF(PFP!$B$8:$B$14,"MO1",PFP!$J$8:$J$14)*(1+PFP2.1_FatorKa!$E$35)+SUMIF(PFP!$B$8:$B$14,"MO2",PFP!$J$8:$J$14)*(1+PFP2.2_FatorKb!$E$35)+SUMIF(PFP!$B$8:$B$14,"<>MO*",PFP!$J$8:$J$14)+$F$13+$F$12) -> 0
A9: K4.1 | B9: ISS | D9: 0.05 | E9: =ROUND((1/(1-$D$8))*D9,4) -> 0.0571 | F9: =E9*SUM(SUMIF(PFP!$B$8:$B$14,"MO1",PFP!$J$8:$J$14)*(1+PFP2.1_FatorKa!$E$35)+SUMIF(PFP!$B$8:$B$14,"MO2",PFP!$J$8:$J$14)*(1+PFP2.2_FatorKb!$E$35)+SUMIF(PFP!$B$8:$B$14,"<>MO*",PFP!$J$8:$J$14)+$F$13+$F$12) -> 0
A10: K4.2 | B10: PIS3 - aliquota efetiva aplicavel percentual-desconto | D10: =ROUND(1.65%*0.8,4) -> 0.0132 | E10: =ROUND((1/(1-$D$8))*D10,4) -> 0.0151 | F10: =E10*SUM(SUMIF(PFP!$B$8:$B$14,"MO1",PFP!$J$8:$J$14)*(1+PFP2.1_FatorKa!$E$35)+SUMIF(PFP!$B$8:$B$14,"MO2",PFP!$J$8:$J$14)*(1+PFP2.2_FatorKb!$E$35)+SUMIF(PFP!$B$8:$B$14,"<>MO*",PFP!$J$8:$J$14)+$F$13+$F$12) -> 0
A11: K4.3 | B11: COFINS3 - aliquota efetiva aplicavel percentual-desconto | D11: =ROUND(7.6%*0.8,4) -> 0.0608 | E11: =ROUND((1/(1-$D$8))*D11,4) -> 0.0694 | F11: =E11*SUM(SUMIF(PFP!$B$8:$B$14,"MO1",PFP!$J$8:$J$14)*(1+PFP2.1_FatorKa!$E$35)+SUMIF(PFP!$B$8:$B$14,"MO2",PFP!$J$8:$J$14)*(1+PFP2.2_FatorKb!$E$35)+SUMIF(PFP!$B$8:$B$14,"<>MO*",PFP!$J$8:$J$14)+$F$13+$F$12) -> 0
A12: K3 | B12: REMUNERAÇÃO DA EMPRESA (LUCRO) | E12: =(0.6*12%)+(0.4*5.11%) -> 0.09244 | F12: =E12*SUM(SUMIF(PFP!$B$8:$B$14,"MO1",PFP!$J$8:$J$14)*(1+PFP2.1_FatorKa!$E$35)+SUMIF(PFP!$B$8:$B$14,"MO2",PFP!$J$8:$J$14)*(1+PFP2.2_FatorKb!$E$35)+SUMIF(PFP!$B$8:$B$14,"<>MO*",PFP!$J$8:$J$14)+$F$13) -> 0 | XFB12: OBS:
A13: K2 | B13: CUSTOS DA ADMINISTRAÇÃO CENTRAL | E13: =ROUND(SUM(E14:E16),4) -> 0.0724 | F13: =ROUND(E13*SUMIF(PFP!$B$8:$B$14,"MO*",PFP!$J$8:$J$14),2) -> 0 | XFB13: Para o item K3 (remuneração da empresa – lucro) componente
A14: K2.1 | B14: Custos da administração central da empresa (diretoria, pessoal técnico de apoio e pessoal administrativo não diretamente vinculado à prestação dos serviços) | E14: 0.04 | F14: =ROUND(E14*SUMIF(PFP!$B$8:$B$14,"MO*",PFP!$J$8:$J$14),2) -> 0 | XFB14: do Fator Kd, considerou-se a média ponderada de 60% para consultoria de engenharia
A15: K2.2 | B15: Outras despesas que afetam o custo de produção como treinamento, biblioteca, programa de qualidade, programa de benefícios, auditoria interna e externa | E15: 0.02 | F15: =ROUND(E15*SUMIF(PFP!$B$8:$B$14,"MO*",PFP!$J$8:$J$14),2) -> 0 | XFB15: (lucro de 12%, conforme Tabela de Consultoria de Engenharia do Dnit-Out/2022) e 40% para
A16: K2.3 | B16: Despesas fixas e variaveis com patrimônio, aluguéis, comunicação, manutenção e transporte não diretamente relacionados com o custo direto dos serviços | E16: 0.0124 | F16: =ROUND(E16*SUMIF(PFP!$B$8:$B$14,"MO*",PFP!$J$8:$J$14),2) -> 0 | XFB16: fornecimento de material (lucro de 5,11%, quartil médio conforme o Acórdão 2622/2013 do TCU).
A17: Kd | B17: TAXA RESSARCIMENTO DE DESPESAS SOBRE CUSTOS DIVERSOS | E17: =ROUND((1+E12)*(1+E8),4) -> 1.2471
A18: NOME DO INFORMANTE: | E18: QUALIFICAÇÃO: | XFB18: Os sub-índices componentes do K2 estão conforme o Relatório de "Consolidação de Custos Gerais e BDI"
XFB19: da Tabela Consultiva do DNIT-Out/2022.
A20: ASSINATURA: | E20: DATA:
A22: Observação:
A23: 1 - RELACIONAR OS CUSTOS DE ADMINISTRAÇÃO COM RESPECTIVOS PERCENTUAIS INCIDENTES NA MÃO -DE-OBRA
A24: 1 - DISCRIMINAR OS TRIBUTOS QUE INCIDEM SOBRE OS CUSTOS DA PRESTAÇÃO DOS SERVIÇOS
A25: 2 - K4 = INDICAR % DE CADA TRIBUTO E A SOMA DOS MESMOS (ex: ISS 5% + PIS 1,65% + COFINS 7,60% = 14,25%)
A26: 3 - PIS e COFINS, Regime de Incidencia Acumulativa (0,65% e 3,00% - sem percentual de desconto) ou em Regime de Incidencia Não Acumulativa (1,65% e 7,60% - aplicável percentual de desconto) de acordo com a forma de apuração do lucro no IRPJ. APRESENTAR COMPROVANTES de aproveitamento de créditos tributários dos últimos 12 meses em caso de aplicação de "percentual de desconto".
A27: 4 - AS DESPESAS FISCAIS (K4) INCIDEM SOBRE O TOTAL DA FATURA E NÃO SOBRE OS CUSTOS INCORRIDOS,
A28: DEVENDO SER CALCULADO O K4' APLICANDO-SE A SEGUINTE FÓRMULA:
A29: K4' = { [ 1 / ( 1 - K4) ] - 1 } x 100
A30: =CONCATENATE(" K4' = { [ 1 / ( 1 - ",D8," ) ] - 1 } x 100") -> K4' = { [ 1 / ( 1 - 0,124 ) ] - 1 } x 100
A31: Kc - Taxa de Ressarcimento de Despesas sobre Custos Diversos (incide sobre os Insumos Codigo DP e EM)
A32: Kc = (1 + K3) x (1 + K4)
A33: K2 - Incide sobre o Custo Total (CT) da Mão de Obra (MO* = MO1 + MO2)
A34: K3 - Incide sobre o Custo Total (CT) Mão de Obra com encargos (MO1 x Ka ou MO2 x Kb), demais Custos (DP e EM), e Custos da Administração Central (K2)
A35: K4 - Incide sobre o Custo Total (CT) Mão de Obra com encargos (MO1 x Ka ou MO2 x Kb), demais Custos (DP e EM), e Custos da Administração Central (K2) e Lucro (K3)

Sheet CRO1_Ins-Pro
A1: INSUMOS POR ETAPA/PRODUTO | J1: CÓDIGO:
J2: CRO-1
A3: Cod. | B3: Categoria / Insumo | C3: Uni | D3: Qde | E3: CUD | F3: PU | G3: FatorK | H3: 1.Mob | I3: 2.EP | J3: 3.PB | K3: 4.PE
G4: Meses | H4: =COUNTA('CRO2_Ins-Mes'!F46:Q46)-COUNTIF('CRO2_Ins-Mes'!F46:Q46,0) -> 0 | I4: =COUNTA('CRO2_Ins-Mes'!F55:Q55)-COUNTIF('CRO2_Ins-Mes'!F55:Q55,0) -> 0 | J4: =COUNTA('CRO2_Ins-Mes'!F64:Q64)-COUNTIF('CRO2_Ins-Mes'!F64:Q64,0) -> 0
A5: =PFP!C8 -> P0 | B5: =PFP!D8 -> Engenheiro coordenador (P8061) | C5: mês | D5: =SUM(H5:K5) -> 1.4 | E5: =PFP!G8 -> 0 | F5: =PFP!H8 -> 0 | G5: =PFP!I8 -> 1.3374 | H5: ='CRO2_Ins-Mes'!E35 -> 0.2 | I5: ='CRO2_Ins-Mes'!E39 -> 0.2 | J5: ='CRO2_Ins-Mes'!E48 -> 0.6 | K5: ='CRO2_Ins-Mes'!E57 -> 0.4
A6: =PFP!C9 -> P2 | B6: =PFP!D9 -> Engenheiro pleno (P8066) | C6: mês | D6: =SUM(H6:K6) -> 5.5 | E6: =PFP!G9 -> 0 | F6: =PFP!H9 -> 0 | G6: =PFP!I9 -> 2.4583 | H6: ='CRO2_Ins-Mes'!E36 -> 0.5 | I6: ='CRO2_Ins-Mes'!E40 -> 1.25 | J6: ='CRO2_Ins-Mes'!E49 -> 2 | K6: ='CRO2_Ins-Mes'!E58 -> 1.75
A7: =PFP!C10 -> P3 | B7: =PFP!D10 -> Engenheiro júnior (P8065) | C7: mês | D7: 5 | E7: =PFP!G10 -> 0 | F7: =PFP!H10 -> 0 | G7: =PFP!I10 -> 2.4583 | I7: ='CRO2_Ins-Mes'!E41 -> 1.25 | J7: ='CRO2_Ins-Mes'!E50 -> 2 | K7: ='CRO2_Ins-Mes'!E59 -> 1.75
A8: =PFP!C11 -> T1 | B8: =PFP!D11 -> Técnico de projetos/obra (P8147) | C8: mês | D8: 5 | E8: =PFP!G11 -> 0 | F8: =PFP!H11 -> 0 | G8: =PFP!I11 -> 2.4583 | I8: ='CRO2_Ins-Mes'!E42 -> 1.25 | J8: ='CRO2_Ins-Mes'!E51 -> 2 | K8: ='CRO2_Ins-Mes'!E60 -> 1.75
A9: =PFP!C12 -> D | B9: =PFP!D12 -> Desenhista (P9848) | C9: mês | D9: 3.75 | E9: =PFP!G12 -> 0 | F9: =PFP!H12 -> 0 | G9: =PFP!I12 -> 2.4583 | I9: ='CRO2_Ins-Mes'!E43 -> 0 | J9: ='CRO2_Ins-Mes'!E52 -> 2 | K9: ='CRO2_Ins-Mes'!E61 -> 1.75
A10: =PFP!C13 -> TOP | B10: =PFP!D13 -> Serviços Cartográficos | C10: un | D10: 1 | E10: =PFP!G13 -> - | F10: =PFP!H13 -> 0 | G10: =PFP!I13 -> - | I10: ='CRO2_Ins-Mes'!F44 -> 0.4 | J10: ='CRO2_Ins-Mes'!E53 -> 0.4 | K10: ='CRO2_Ins-Mes'!E62 -> 0.2
A11: =PFP!C14 -> GEO | B11: =PFP!D14 -> Serviços Geotécnicos | C11: un | D11: 1 | E11: =PFP!G14 -> - | F11: =PFP!H14 -> 0 | G11: =PFP!I14 -> - | I11: ='CRO2_Ins-Mes'!F45 -> 0.4 | J11: ='CRO2_Ins-Mes'!E54 -> 0.4 | K11: ='CRO2_Ins-Mes'!E63 -> 0.2
A12: TOTAL | B12: VALOR TOTAL POR PRODUTO | C12: R$ | D12: 0 | H12: =(H5*$F$5+H6*$F$6+H7*$F$7+H8*$F$8+H9*$F$9+H10*$F$10+H11*$F$11) -> 0 | I12: =(I5*$F$5+I6*$F$6+I7*$F$7+I8*$F$8+I9*$F$9+I10*$F$10+I11*$F$11) -> 0 | J12: =(J5*$F$5+J6*$F$6+J7*$F$7+J8*$F$8+J9*$F$9+J10*$F$10+J11*$F$11) -> 0 | K12: =(K5*$F$5+K6*$F$6+K7*$F$7+K8*$F$8+K9*$F$9+K10*$F$10+K11*$F$11) -> 0
C13: % | H13: =ROUND(H12/$D$12,5) ->  | I13: =ROUND(I12/$D$12,5) ->  | J13: =ROUND(J12/$D$12,5) ->  | K13: =ROUND(K12/$D$12,5) -> 
A76: OBSERVAÇÃO:
A77: P - Profissionais nível superior nas áreas de Engenharia, Química, Arquitetura, Agronomia e Veterinária, conforme disposições da Lei 4.950-A/66
A78: T - Profissionais de nível médio técnico nas diversas áreas de atuação
A79: D - Profissionais de nível médio de apoio técnico

Sheet CRO2_Ins-Mes
A1: CRONOGRAMA SIMPLIFICADO
A3: Cod1 | B3: Cod2 | C3: Produtos | D3: Uni | E3: Qde | F3: 1 | G3: 2 | H3: 3 | I3: 4 | J3: 5 | K3: 6 | L3: 7 | M3: 8 | N3: 9 | O3: 10 | P3: 11 | Q3: 12
A4: 1 | B4: 1 | C4: Mobilização e Relatório de Planejamento dos Serviços | E4: =SUM(F4:Q4) -> 1 | F4: 1
B5: 1.1 | C5: Mobilização e Relatório de Planejamento dos Serviços | D5: mês | E5: =SUM(F5:Q5) -> 1 | F5: 1
A7: 2 | B7: 2 | C7: Estudos Preliminares | E7: =SUM(F7:Q7) -> 1 | F7: =SUBTOTAL(4,F8:F12) -> 1 | G7: 0 | H7: 0 | I7: 0 | J7: 0 | K7: 0 | L7: 0 | M7: 0 | N7: 0 | O7: 0 | P7: 0 | Q7: 0
A8: 2 | B8: 2.1 | C8: Estudos de Tráfego | D8: mês | E8: =SUM(F8:Q8) -> 1 | F8: 1
A9: 2 | B9: 2.2 | C9: Estudos Topográficos | D9: mês | E9: =SUM(F9:Q9) -> 1 | F9: 1
A10: 2 | B10: 2.3 | C10: Estudos Geotécnicos | D10: mês | E10: 1 | F10: 1
A11: 2 | B11: 2.4 | C11: Estudos Geológicos | D11: mês | E11: 1 | F11: 1
A12: 2 | B12: 2.5 | C12: Estudos Hidrológicos | D12: mês | E12: 1 | F12: 1
A14: 3 | B14: 3 | C14: Estudos de Campo e Projeto Básico | E14: =SUM(F14:Q14) -> 3 | F14: =SUBTOTAL(4,F15:F21) -> 0 | G14: 1 | H14: 1 | I14: 1 | J14: 0 | K14: 0 | L14: 0 | M14: 0 | N14: 0 | O14: 0 | P14: 0 | Q14: 0
A15: 3 | B15: 3.1 | C15: Projeto Geométrico | D15: mês | E15: =SUM(F15:Q15) -> 1 | G15: 1
A16: 3 | B16: 3.2 | C16: Projeto de Terraplenagem | D16: mês | E16: 1 | G16: 1
A17: 3 | B17: 3.3 | C17: Projeto de Drenagem e OAC | D17: mês | E17: 1 | H17: 1
A18: 3 | B18: 3.4 | C18: Projeto de Pavimentação e Paisagismo | D18: mês | E18: 2 | H18: 1 | I18: 1
A19: 3 | B19: 3.5 | C19: Projetos de OAEs | D19: mês | E19: 1 | H19: 1
A20: 3 | B20: 3.7 | C20: Projeto de Sinalização e Segurança Viária | D20: mês | E20: 1 | I20: 1
A21: 3 | B21: 3.8 | C21: Orçamento e Plano de Execução da Obra | D21: mês | E21: 1 | I21: 1
A23: 4 | B23: 4 | C23: Elaboração do Projeto Executivo | E23: =SUM(F23:Q23) -> 2 | F23: =SUBTOTAL(4,F24:F30) -> 0 | G23: 0 | H23: 0 | I23: 0 | J23: 1 | K23: 1 | L23: 0 | M23: 0 | N23: 0 | O23: 0 | P23: 0 | Q23: 0
A24: 4 | B24: 4.1 | C24: Projeto Geométrico | D24: mês | E24: =SUM(F24:Q24) -> 1 | J24: 1
A25: 4 | B25: 4.2 | C25: Projeto de Terraplenagem e Paisagismo | D25: mês | E25: 1 | J25: 1
A26: 4 | B26: 4.3 | C26: Projeto de Drenagem e OAC | D26: mês | E26: 1 | J26: 1
A27: 4 | B27: 4.4 | C27: Projeto de Pavimentação | D27: mês | E27: 1 | K27: 1
A28: 4 | B28: 4.5 | C28: Projetos de OAEs | D28: mês | E28: 1 | K28: 1
A29: 4 | B29: 4.7 | C29: Projeto de Sinalização e Segurança Viária | D29: mês | E29: 1 | K29: 1
A30: 4 | B30: 4.8 | C30: Orçamento e Plano de Execução da Obra | D30: mês | E30: 1 | K30: 1
A32: Total | B32: Total | C32: Balanço Temporal | D32: mês | E32: 6 | F32: =SUBTOTAL(4,F8:F30) -> 1 | G32: 1 | H32: 1 | I32: 1 | J32: 1 | K32: 1 | L32: 0 | M32: 0 | N32: 0 | O32: 0 | P32: 0 | Q32: 0
A33: Cod1 | B33: Cod2 | C33: Insumos | D33: Uni | E33: Qde | F33: 1 | G33: 2 | H33: 3 | I33: 4 | J33: 5 | K33: 6 | L33: 7 | M33: 8 | N33: 9 | O33: 10 | P33: 11 | Q33: 12
A34: 1 | B34: 1 | C34: Mobilização e Relatório de Planejamento dos Serviços
A35: 1 | B35: =PFP!C8 -> P0 | C35: =PFP!D8 -> Engenheiro coordenador (P8061) | D35: mês | E35: =SUM(F35:Q35) -> 0.2 | F35: 0.2
A36: 1 | B36: =PFP!C9 -> P2 | C36: =PFP!D9 -> Engenheiro pleno (P8066) | D36: mês | E36: =SUM(F36:Q36) -> 0.5 | F36: 0.5
A38: 2 | B38: 2 | C38: Estudos Preliminares
A39: 2 | B39: =PFP!C8 -> P0 | C39: =PFP!D8 -> Engenheiro coordenador (P8061) | D39: =PFP!E8 -> mês | E39: =SUM(F39:Q39) -> 0.2 | F39: 0.2
A40: 2 | B40: =PFP!C9 -> P2 | C40: =PFP!D9 -> Engenheiro pleno (P8066) | D40: =PFP!E9 -> mês | E40: =SUM(F40:Q40) -> 1.25 | F40: 1.25
A41: 2 | B41: =PFP!C10 -> P3 | C41: =PFP!D10 -> Engenheiro júnior (P8065) | D41: =PFP!E10 -> mês | E41: 1.25 | F41: 1.25
A42: 2 | B42: =PFP!C11 -> T1 | C42: =PFP!D11 -> Técnico de projetos/obra (P8147) | D42: =PFP!E11 -> mês | E42: 1.25 | F42: 1.25
A43: 2 | B43: =PFP!C12 -> D | C43: =PFP!D12 -> Desenhista (P9848) | D43: =PFP!E12 -> mês | E43: =SUM(F43:Q43) -> 0
A44: 2 | B44: =PFP!C13 -> TOP | C44: =PFP!D13 -> Serviços Cartográficos | D44: um | E44: =SUM(F44:Q44) -> 0.4 | F44: 0.4
A45: 2 | B45: =PFP!C14 -> GEO | C45: =PFP!D14 -> Serviços Geotécnicos | D45: um | E45: 0.4 | F45: 0.4
A47: 3 | B47: 3 | C47: Estudos de Campo e Projeto Básico
A48: 3 | B48: =PFP!C8 -> P0 | C48: =PFP!D8 -> Engenheiro coordenador (P8061) | D48: =PFP!E8 -> mês | E48: =SUM(F48:Q48) -> 0.6 | G48: 0.2 | H48: 0.2 | I48: 0.2
A49: 3 | B49: =PFP!C9 -> P2 | C49: =PFP!D9 -> Engenheiro pleno (P8066) | D49: =PFP!E9 -> mês | E49: =SUM(F49:Q49) -> 2 | G49: 0.5 | H49: 0.75 | I49: 0.75
A50: 3 | B50: =PFP!C10 -> P3 | C50: =PFP!D10 -> Engenheiro júnior (P8065) | D50: =PFP!E10 -> mês | E50: 2 | G50: 0.5 | H50: 0.75 | I50: 0.75
A51: 3 | B51: =PFP!C11 -> T1 | C51: =PFP!D11 -> Técnico de projetos/obra (P8147) | D51: =PFP!E11 -> mês | E51: 2 | G51: 0.5 | H51: 0.75 | I51: 0.75
A52: 3 | B52: =PFP!C12 -> D | C52: =PFP!D12 -> Desenhista (P9848) | D52: =PFP!E12 -> mês | E52: 2 | G52: 0.5 | H52: 0.75 | I52: 0.75
A53: 3 | B53: =PFP!C13 -> TOP | C53: =PFP!D13 -> Serviços Cartográficos | D53: =PFP!E13 -> un | E53: 0.4 | G53: 0.2 | H53: 0.2
A54: 3 | B54: =PFP!C14 -> GEO | C54: =PFP!D14 -> Serviços Geotécnicos | D54: =PFP!E14 -> un | E54: 0.4 | G54: 0.2 | H54: 0.2
A56: 4 | B56: 4 | C56: Elaboração do Projeto Executivo
A57: 4 | B57: =PFP!C8 -> P0 | C57: =PFP!D8 -> Engenheiro coordenador (P8061) | D57: =PFP!E8 -> mês | E57: =SUM(F57:Q57) -> 0.4 | J57: 0.2 | K57: 0.2
A58: 4 | B58: =PFP!C9 -> P2 | C58: =PFP!D9 -> Engenheiro pleno (P8066) | D58: =PFP!E9 -> mês | E58: =SUM(F58:Q58) -> 1.75 | J58: 0.75 | K58: 1
A59: 4 | B59: =PFP!C10 -> P3 | C59: =PFP!D10 -> Engenheiro júnior (P8065) | D59: =PFP!E10 -> mês | E59: 1.75 | J59: 0.75 | K59: 1
A60: 4 | B60: =PFP!C11 -> T1 | C60: =PFP!D11 -> Técnico de projetos/obra (P8147) | D60: =PFP!E11 -> mês | E60: 1.75 | J60: 0.75 | K60: 1
A61: 4 | B61: =PFP!C12 -> D | C61: =PFP!D12 -> Desenhista (P9848) | D61: =PFP!E12 -> mês | E61: 1.75 | J61: 0.75 | K61: 1
A62: 4 | B62: =PFP!C13 -> TOP | C62: =PFP!D13 -> Serviços Cartográficos | D62: um | E62: 0.2 | J62: 0.2
A63: 4 | B63: =PFP!C14 -> GEO | C63: =PFP!D14 -> Serviços Geotécnicos | D63: um | E63: =SUM(F63:Q63) -> 0.2 | J63: 0.2
A65: Total | C65: Balanço de Insumos | F65: =SUBTOTAL(2,F39:F64) -> 6 | G65: 7 | H65: 7 | I65: 5 | J65: 7 | K65: 5 | L65: 0 | M65: 0 | N65: 0 | O65: 0 | P65: 0 | Q65: 0

Sheet CRONOGRAMA FIS-FIN
A2: ELABORAÇÃO DOS ESTUDOS PRELIMINARES E CONSOLIDAÇÃO DO PROJETO RODOVIÁRIO DO RAMAL DO MANGA NO ESTADO AMAPÁ. | K2: CODEVASF (11ª SR - AP)
A3: Cronograma Físico e Financeiro
A4: Item | B4: Descrição | C4: Total Por Etapa | D4: 15 DIAS | E4: 15 DIAS | F4: 15 DIAS | G4: 15 DIAS | H4: 15 DIAS | I4: 15 DIAS | J4: 15 DIAS | K4: 15 DIAS | L4: 15 DIAS | M4: 15 DIAS | N4: 15 DIAS | O4: 15 DIAS
B5: ='[1]CRO2_Ins-Mes'!C4 -> Mobilização e Relatório de Planejamento dos Serviços | C5: 1 | D5: 1
C6: ='CRO1_Ins-Pro'!H12 -> 0 | D6: =$C$6*D5 -> 0
B7: ='[1]CRO2_Ins-Mes'!C7 -> Estudos Preliminares | C7: 1 | E7: 0.5 | F7: 0.5
C8: ='CRO1_Ins-Pro'!I12 -> 0 | E8: =$C$8*E7 -> 0 | F8: =$C$8*F7 -> 0
B9: ='[1]CRO2_Ins-Mes'!C13 -> Estudos de Campo e Projeto Básico | C9: 1 | G9: 0.1666666667 | H9: 0.1666666667 | I9: 0.1666666667 | J9: 0.1666666667 | K9: 0.1666666667 | L9: 0.1666666667
C10: ='CRO1_Ins-Pro'!J12 -> 0 | G10: =$C$10*G9 -> 0 | H10: 0 | I10: 0 | J10: 0 | K10: 0 | L10: 0
B11: ='[1]CRO2_Ins-Mes'!C22 -> Elaboração do Projeto Executivo | C11: 1 | L11: =1/4 -> 0.25 | M11: =1/4 -> 0.25 | N11: =1/4 -> 0.25 | O11: 0.25
C12: ='CRO1_Ins-Pro'!K12 -> 0 | L12: =$C$12*L11 -> 0 | M12: =$C$12*M11 -> 0 | N12: 0 | O12: 0
A14: Porcentagem | D14: =SUM(D6+D10+D12+D8)/$O$19 ->  | E14: =SUM(E6+E10+E12+E8)/$O$19 -> 
A15: Custo | D15: =$O$19*D14 ->  | E15: =$O$19*E14 ->  | F15: =$O$19*F14 -> 
A16: Porcentagem Acumulado | D16: =D14 ->  | E16: =D16+E14 ->  | F16: =E16+F14 -> 
A17: Custo Acumulado | D17: =D15 ->  | E17: =D17+E15 -> 
D19: Total Geral | N19: R$ | O19: =C6+C8+C10+C12 -> 0
